Cogmind - Beta 13 *** ADVENTURER MODE // 2024.04.02 @ 20:57:59 Player: J-mop Result: Self-destructed Performance ------------- Evolutions (2) 1000 Regions Visited (5) 1000 Robots Destroyed (51) 255 Value Destroyed (1254) 1254 Prototype IDs (25) 500 Alien Tech Used (0) 0 Bonus (321) 321 TOTAL SCORE: 4330 Bonus ------- Follower Combat Kills 21 Aligned with FarCom 300 Cogmind --------- Core Integrity 229/550 Matter 209/300 Energy 140/250 System Corruption 0% Temperature Cool (0) Movement Flying (120) Ox1 Location -8/Materials Parts ------- > --- POWER (1) -------- Ion Engine > --- PROPULSION (4) --- Flight Unit > --- UTILITY (4) ------ (None) > --- WEAPON (2) ------- (None) > --- INVENTORY (5) ---- Light Ion Engine Light Ion Engine Targeting Computer Peak State ------------ > --- POWER ------------ Light Ion Engine > --- PROPULSION ------- Flight Unit Flight Unit Flight Unit Flight Unit > --- UTILITY ---------- Structural Scanner Targeting Computer Cloak of Protection Insulated Plating > --- WEAPON ----------- Grenade Launcher Hammer > --- INVENTORY -------- Ion Engine Flight Unit Targeting Computer Light Armor Plating Grenade Launcher [Rating: 20] Favorites ----------- Power Light Ion Engine Engine Light Ion Engine Propulsion Light Treads Treads Light Treads Flight Unit Flight Unit Utility High-capacity Storage Unit Device Structural Scanner Storage High-capacity Storage Unit Processor Targeting Computer Protection Light Armor Plating Weapon Assault Rifle Ballistic Gun Assault Rifle Launcher Grenade Launcher Impact Weapon Hammer Build | -11 -10 -10 -10 -9 -8 ------- Run | Yrd Mat Min Exi Min Mat Slots Evolved 4 | . . . . . 4 Power . | . . . . . . Propulsion 2 | . . . . . 2 Utility 2 | . . . . . 2 Weapon . | . . . . . . Parts Attached 45 | 5 8 4 . 3 25 Power 5 | 1 . 1 . 1 2 Engine 5 | 1 . 1 . 1 2 Core . | . . . . . . Reactor . | . . . . . . Propulsion 12 | 2 . . . 2 8 Treads 4 | 2 . . . 2 . Leg . | . . . . . . Wheel . | . . . . . . Hover . | . . . . . . Flight 8 | . . . . . 8 Utility 9 | . 3 1 . . 5 Device 3 | . 1 1 . . 1 Storage 1 | . 1 . . . . Processor 1 | . . . . . 1 Hackware . | . . . . . . Protection 4 | . 1 . . . 3 Artifact . | . . . . . . Weapon 19 | 2 5 2 . . 10 Energy Gun . | . . . . . . Energy Cannon . | . . . . . . Ballistic Gun 8 | 2 3 2 . . 1 Ballistic Cannon . | . . . . . . Launcher 5 | . . . . . 5 Special Weapon . | . . . . . . Impact Weapon 6 | . 2 . . . 4 Slashing Weapon . | . . . . . . Piercing Weapon . | . . . . . . Special Melee Weapon . | . . . . . . Unidentified Prototypes . | . . . . . . Parts Lost 17 | . . 1 . 1 15 Power 3 | . . 1 . 1 1 Propulsion 7 | . . . . . 7 Utility 4 | . . . . . 4 Weapon 3 | . . . . . 3 Highest Loss Streak 5 | . . 1 . 1 5 To Critical Strikes . | . . . . . . Average Slot Usage (%) 97 | . 97 100 100 99 87 Engine 13 | . 14 14 14 13 8 Treads 23 | . 28 28 28 28 . Flight 4 | . . . . . 30 Device 10 | . . 13 14 14 16 Storage 11 | . 11 14 14 14 . Processor 1 | . . . . . 8 Protection 4 | . 12 . . . 7 Ballistic Gun 22 | . 25 28 28 28 1 Launcher 1 | . . . . . 7 Impact Weapon 1 | . 2 . . . 7 Naked Turns 9 | . . . . . 9 Heaviest Build 59 | 6 50 50 48 50 59 Greatest Support 40 | 40 40 40 40 40 16 Greatest Overweight (x) 3 | . 1 1 1 1 3 Average Overweight (x) . | . . 1 1 1 1 Largest Inventory Capacity 20 | 5 20 20 20 20 20 Average Capacity 16 | 5 17 20 20 20 5 Most Carried 20 | 5 20 20 19 20 19 Average Carried 14 | 1 12 17 18 19 4 Final Capacity 20 | 5 20 20 20 20 5 Final Carried 20 | 2 17 18 19 20 3 Class Distribution -------------------- 61% | Mutant 38% | Scavenger-Mutant Dominant Class ---------------- Mutant | -10/Materials Mutant | -10/Mines Mutant | -10/Exiles Scavenger-Mutant | -9/Mines Scavenger-Mutant | -8/Materials Resources | -11 -10 -10 -10 -9 -8 ----------- Run | Yrd Mat Min Exi Min Mat Matter Collected 1330 | 162 451 195 . 143 379 Remotely . | . . . . . . Salvage Created 1535 | . 348 322 . 272 593 Parts 108 | . 21 29 . 16 42 Haulers Intercepted 1 | . . . . . 1 Recyclers Shooed 2 | . . . . . 2 Parts Field Recycled . | . . . . . . Retrieved Matter . | . . . . . . Parts Self-Destructed . | . . . . . . Prevented . | . . . . . . Kills | -11 -10 -10 -10 -9 -8 ------- Run | Yrd Mat Min Exi Min Mat Combat Hostiles Destroyed 37 | . 7 6 . 6 18 Melee 7 | . . . . . 7 Guns 19 | . 7 6 . 6 . AOE 8 | . . . . . 8 Classes Destroyed 10 | . 5 2 . 1 2 Worker 2 | . . 1 . 1 . Builder 3 | . 1 . . . 2 Tunneler 2 | . . 2 . . . Hauler 1 | . . . . . 1 Recycler 4 | . 1 1 . . 2 Watcher 2 | . 1 . . . 1 Swarmer 13 | . 2 2 . 1 8 Grunt 19 | . 5 4 . 3 7 Brawler 2 | . . . . 2 . Sentry 3 | . . . . . 3 Best Kill Streak 9 | . 3 2 . 2 9 Combat Bots Only 6 | . 3 2 . 2 6 Max Kills in Single Turn 2 | . 1 1 . 1 2 Gunslinging . | . . . . . . Exploded 2 | . . . . . 2 Melee 1 | . . . . . 1 Uniques/NPCs Destroyed . | . . . . . . Combat | -11 -10 -10 -10 -9 -8 -------- Run | Yrd Mat Min Exi Min Mat Hostile Shots Fired 260 | . 41 45 . 26 148 Missed 68 | . 14 8 . 8 38 Damage Taken 2103 | . 230 298 . 212 1363 Core 457 | . 51 49 . 36 321 Absorbed by Shields . | . . . . . . Ignored by Resistances 622 | . 70 92 . 66 394 Core Remaining (%) 72 | 100 . . . 45 . Volleys Fired 94 | . 26 22 . 18 28 Largest 2 | . 2 2 . 2 2 Hottest 60 | . 40 40 . 40 60 Shots Fired 169 | . 52 44 . 36 37 Gun 142 | . 52 44 . 36 10 Cannon . | . . . . . . Launcher 27 | . . . . . 27 Special . | . . . . . . Kinetic 142 | . 52 44 . 36 10 Thermal . | . . . . . . Explosive 27 | . . . . . 27 Electromagnetic . | . . . . . . Robot Hit Streak 29 | . 19 12 . 23 29 Robot Miss Streak 4 | . 2 4 . 1 1 Penetration Max . | . . . . . . Secondary Targets 5 | . 2 2 . 1 . Max Gunslinging Chain 1 | . 1 1 . 1 . Shots Hit Robots 154 | . 41 31 . 31 51 Core Hits 85 | . 17 16 . 10 42 Critical Kills 6 | . 1 . . . 5 Critical Parts Destroyed 2 | . . . . . 2 Critical Strikes 8 | . 1 . . . 7 Destroy 1 | . 1 . . . . Smash 7 | . . . . . 7 Melee Attacks 51 | . 3 . . . 48 Impact 51 | . 3 . . . 48 Slashing . | . . . . . . Piercing . | . . . . . . Sneak Attacks 3 | . . . . . 3 Combat Hostiles . | . . . . . . Follow-up Attacks . | . . . . . . Damage Inflicted 3111 | . 481 381 . 394 1855 Guns 1400 | . 478 376 . 394 152 Cannons . | . . . . . . Explosions 884 | . . . . . 884 Melee 814 | . . . . . 814 Ramming 13 | . 3 5 . . 5 Kinetic 1400 | . 478 376 . 394 152 Thermal 81 | . . . . . 81 Explosive 803 | . . . . . 803 Electromagnetic . | . . . . . . Impact 814 | . . . . . 814 Slashing . | . . . . . . Piercing . | . . . . . . Highest Corruption . | . . . . . . Average Corruption . | . . . . . . Corruption Purged . | . . . . . . Corruption Blocked . | . . . . . . Overload Shots . | . . . . . . Overflow Damage 192 | . . . . . 192 Projectiles . | . . . . . . Explosions 48 | . . . . . 48 Melee 144 | . . . . . 144 Knockbacks 7 | . . . . . 7 Impact 6 | . . . . . 6 Kinetic . | . . . . . . Secondary 1 | . . . . . 1 Self-Inflicted Damage 218 | . . . . . 218 Shots 8 | . . . . . 8 Rammed 5 | . 1 3 . . 1 Targets Rammed 5 | . 1 3 . . 1 Kicked . | . . . . . . Crushed . | . . . . . . Highest Temperature 76 | . 15 15 . . 76 Average Temperature 18 | . 6 3 . . 29 Received Heat Transfer 1029 | . 141 129 . 66 693 Siege Activations . | . . . . . . Robots Corrupted . | . . . . . . Combat Hostiles . | . . . . . . Parts Fried 5 | . . . . . 5 Impact Corruptions 7 | . . . . . 7 Robots Melted . | . . . . . . Combat Hostiles . | . . . . . . Parts Melted . | . . . . . . Heat Transferred 100 | . . . . . 100 Parts Sabotaged . | . . . . . . Parts Stolen . | . . . . . . Parts Stripped . | . . . . . . Power Chain Reactions . | . . . . . . Alert | -11 -10 -10 -10 -9 -8 ------- Run | Yrd Mat Min Exi Min Mat Peak Influence 377 | . 79 90 . 75 377 Initial 23 | . . 23 . . . Average 38 | . 26 28 . 31 82 Maximum Alert Level 1 | . . . . . 1 Low Security (%) 98 | 100 100 100 . 100 92 Level 1 1 | . . . . . 7 Level 2 . | . . . . . . Level 3 . | . . . . . . Level 4 . | . . . . . . Level 5 . | . . . . . . High Security . | . . . . . . Max Security . | . . . . . . Squads Dispatched 3 | . 1 . . . 2 Investigation 1 | . 1 . . . . Extermination . | . . . . . . Reinforcement 2 | . . . . . 2 Assault . | . . . . . . Garrison . | . . . . . . Intercept . | . . . . . . Searches Triggered . | . . . . . . Construction Impeded 1 | . . . . . 1 Haulers Reinforced . | . . . . . . Active Scanning Responses . | . . . . . . Cargo Convoy Interrupts . | . . . . . . Stealth | -11 -10 -10 -10 -9 -8 --------- Run | Yrd Mat Min Exi Min Mat Distress Signals 4 | . . . . . 4 Communications Jammed . | . . . . . . Distress Signals . | . . . . . . Times Spotted 60 | . 10 7 . 10 33 Peak Tracking Total 11 | . 3 3 . 4 11 Tactical Retreats 6 | . . . . 2 4 Traps | -11 -10 -10 -10 -9 -8 ------- Run | Yrd Mat Min Exi Min Mat Traps Triggered 2 | . 2 . . . . Indirectly . | . . . . . . Trap Hack Attempts . | . . . . . . Triggered . | . . . . . . Disarmed . | . . . . . . Reprogrammed . | . . . . . . Reused . | . . . . . . Traps Extracted . | . . . . . . Installed . | . . . . . . Triggered 1 | . . 1 . . . Machines | -11 -10 -10 -10 -9 -8 ---------- Run | Yrd Mat Min Exi Min Mat Machines Disabled 4 | . . . . . 4 Max in Single Turn 1 | . . . . . 1 Machines Repaired . | . . . . . . Machines Dismantled . | . . . . . . Machines Sabotaged . | . . . . . . Overloaded Fab Kills . | . . . . . . Hacking | -11 -10 -10 -10 -9 -8 --------- Run | Yrd Mat Min Exi Min Mat Machines Accessed 6 | . 2 . 1 . 3 Terminals 5 | . 2 . . . 3 Fabricators . | . . . . . . Repair Stations . | . . . . . . Recycling Units . | . . . . . . Scanalyzers . | . . . . . . Garrison Access . | . . . . . . Total Hacks 9 | . 3 . 1 . 5 Successful 5 | . 3 . 1 . 1 Failed 4 | . . . . . 4 Catastrophic . | . . . . . . Database Lockouts . | . . . . . . Manual 2 | . 1 . 1 . . Terminals 8 | . 3 . . . 5 Fabricators . | . . . . . . Repair Stations . | . . . . . . Recycling Units . | . . . . . . Scanalyzers . | . . . . . . Garrison Access . | . . . . . . Terminal Hacks 5 | . 3 . 1 . 1 Prototype ID Bank 1 | . 1 . . . . Branch Access Points 1 | . 1 . . . . Unreport Threat 1 | . . . . . 1 Hauler Manifests 1 | . 1 . . . . Derelict Proto ID Bank 1 | . . . 1 . . Fabricator Hacks . | . . . . . . Repair Station Hacks . | . . . . . . Recycling Unit Hacks . | . . . . . . Scanalyzer . | . . . . . . Garrison Access Hacks . | . . . . . . Unauthorized Hacks . | . . . . . . Terminals . | . . . . . . Fabricators . | . . . . . . Repair Stations . | . . . . . . Recycling Units . | . . . . . . Scanalyzers . | . . . . . . Garrison Access . | . . . . . . Data Cores Recovered . | . . . . . . Used . | . . . . . . Hacking Detections 1 | . . . . . 1 Full Trace Events . | . . . . . . Feedback Events . | . . . . . . Feedback Blocked . | . . . . . . Robot Schematics Acquired . | . . . . . . Robots Built . | . . . . . . Authchips . | . . . . . . Time . | . . . . . . Total Robot Build Rating . | . . . . . . Part Schematics Acquired . | . . . . . . Parts Built . | . . . . . . Authchips . | . . . . . . Time . | . . . . . . Total Part Build Rating . | . . . . . . Parts Repaired . | . . . . . . Time . | . . . . . . Parts Recycled . | . . . . . . Recycled Matter . | . . . . . . Retrieved Matter . | . . . . . . Retrieved Components . | . . . . . . Parts Scanalyzed . | . . . . . . Part Schematics Acquired . | . . . . . . Parts Damaged . | . . . . . . Bothacking | -11 -10 -10 -10 -9 -8 ------------ Run | Yrd Mat Min Exi Min Mat Used RIF Installer . | . . . . . . Robots Hacked . | . . . . . . Non-combat . | . . . . . . Combat . | . . . . . . Robot Hacks Applied . | . . . . . . Relay Couplers Released . | . . . . . . Fabnet Peak Effective % . | . . . . . . Robots Rewired . | . . . . . . Allies Hacked . | . . . . . . Hacks Repelled . | . . . . . . Allies | -11 -10 -10 -10 -9 -8 -------- Run | Yrd Mat Min Exi Min Mat Total Allies 3 | . . 1 . 2 . Largest Group 2 | . . 1 . 2 . Highest-Rated Group 48 | . . 31 . 48 . Highest-Rated Ally 31 | . . 31 . 31 . Total Orders . | . . . . . . Ally Attacks 7 | . . . . 7 . Total Damage 82 | . . . . 82 . Kills 3 | . . . . 3 . Allies Corrupted . | . . . . . . Allies Melted . | . . . . . . Intel | -11 -10 -10 -10 -9 -8 ------- Run | Yrd Mat Min Exi Min Mat Robot Analysis Total . | . . . . . . Derelict Logs Recovered 3 | . . 1 . 2 . Drone Launches . | . . . . . . Drone Recoveries . | . . . . . . Exploration | -11 -10 -10 -10 -9 -8 ------------- Run | Yrd Mat Min Exi Min Mat Turns Passed 6465 | 78 1575 1326 801 1644 1041 Spaces Moved 2807 | 52 648 513 334 653 607 Core 26 | 15 . . . . 11 Treads 2185 | 37 648 513 334 653 . Legs . | . . . . . . Wheels . | . . . . . . Hover . | . . . . . . Flight 596 | . . . . . 596 Fastest Speed 34 | 50 160 240 240 240 34 Average Speed 206 | 128 224 240 240 240 113 Slowest Speed 271 | 160 240 240 240 240 271 Overloaded Moves . | . . . . . . Propulsion Burnouts . | . . . . . . Robots Hopped . | . . . . . . Cave-ins Triggered . | . . . . . . Exploration Rate (%) 56 | 3 60 79 65 89 40 Regions Visited 5 Branch Regions 3 Pre-discovered Areas 1 | . . 1 . . . Known Exits Taken 1 | . 1 . . . . Unknown Exits Taken 4 | 1 . 1 1 1 . Scrap Searched 3 | . . 1 . 2 . Spaces Dug 10 | . 2 . . . 8 Terrain Destroyed 222 | . 2 . . . 220 Melee 10 | . 2 . . . 8 Projectile . | . . . . . . AOE 212 | . . . . . 212 Terrain Rammed . | . . . . . . Walls Destroyed . | . . . . . . Machines Disabled . | . . . . . . Actions | -11 -10 -10 -10 -9 -8 --------- Run | Yrd Mat Min Exi Min Mat Total 3210 | 63 712 562 334 697 842 Wait 136 | . 3 9 . 14 110 Move 2802 | 51 647 512 333 652 607 Hop . | . . . . . . Pick Up 53 | 7 20 7 1 6 12 Fast Attach . | . . . . . . Attach 28 | 5 3 1 . 1 18 Detach 1 | . 1 . . . . Swap 17 | . 5 3 . 2 7 Drop 23 | . 3 5 . 4 11 Fire 94 | . 26 22 . 18 28 Melee 51 | . 3 . . . 48 Ram 1 | . . . . . 1 Kick . | . . . . . . Crush 4 | . 1 3 . . . Escape Stasis . | . . . . . . Rewire . | . . . . . . Trap . | . . . . . . Miscellaneous . | . . . . . . Route ------- -11/Scrapyard -10/Materials (discovered 2 exits: [*Mat] / *Min) -10/Mines -10/Exiles (discovered 2 exits: [*Min x2]) -9/Mines -8/Materials (discovered 1 exit: Fac) History --------- Turn | Location | Event 12 | -11/Scrapyard | Discovered new exit (range 13) 79 | -11/Scrapyard | Entered Materials 111 | -10/Materials | Identified exit to Mines 302 | -10/Materials | Build established: Mutant 337 | -10/Materials | Discovered new exit (range 4) 1654 | -10/Materials | Entered Mines 1657 | -10/Mines | Received a Mining Laser from a helpful Derelict 2096 | -10/Mines | Learned location of Zion (-7) 2964 | -10/Mines | Deemed a non-threat by the Exiles lab entrance 2964 | -10/Mines | Discovered new exit (range 6) 2980 | -10/Mines | Entered Exiles 3038 | -10/Exiles | Discovered new exit (range 15) 3069 | -10/Exiles | Met 8R-AWN 3120 | -10/Exiles | Met EX-HEX 3220 | -10/Exiles | Met EX-BIN 3273 | -10/Exiles | Aligned with FarCom system 3276 | -10/Exiles | Given EX-Vault access code 3381 | -10/Exiles | Opened EX-Vault 3408 | -10/Exiles | Found Cloak of Protection 3461 | -10/Exiles | Warned to stay clear of 0b10 Research branches 3545 | -10/Exiles | Met EX-DEC 3742 | -10/Exiles | Discovered new exit (range 12) 3781 | -10/Exiles | Left Exiles lab with Cloak of Protection 3781 | -10/Exiles | Entered Mines 4033 | -9/Mines | Learned Materials trap positions 4099 | -9/Mines | Build established: Scavenger-Mutant 4541 | -9/Mines | Learned 4 Materials zone layouts 4654 | -9/Mines | Discovered new exit (range 12) 5273 | -9/Mines | Core integrity fell below 50% 5425 | -9/Mines | Entered Materials 5425 | -8/Materials | Evolved 4 slots: Propulsion x2, Utility x2 5426 | -8/Materials | Identified exit to Factory 5427 | -8/Materials | Loaded intel: 13 trap records 6176 | -8/Materials | Lost 3 parts (2n1u) 6406 | -8/Materials | Lost 3 parts (1n2u) 6451 | -8/Materials | Core integrity fell below 50% 6466 | -8/Materials | Self-destructed Last Messages --------------- Electrolysis Chamber disabled. M-13 Machinist repairs Lgt. Nuclear Core. Sneak attack on R-06 Scavenger. Destroyed Tractor Beam. R-06 Scavenger system corrupted by crushing effect. R-06 Scavenger system terminally corrupted. Com. Wheel fried. Lgt. Ion Engine fried. Flight Unit destroyed. Critical hit (Burn: +37). Hammer destroyed. Acquired Flight Unit. R-06 Scavenger collects Prototype Flight Unit. Acquired 75 matter. Acquired 15 matter. Acquired Lgt. Ion Engine. K-01 Serf collects debris. Slammed into T-07 Excavator. Atomic Centrifuge disabled. Map ----- +----------------------------------------------------+ | ?????????????????????????????????????????????????? | | ?????????????????????????????????????????????????? | | ?????????????????????????????????????????????????? | | ?????????????????????????????????????????????????? | | ?????????????????????????????????????????????????? | | ?????????????????????????????????????????????????? | | ?????????????????????????????????????????????????? | | ?????????????????????????????????????????????????? | | ?????????????????????????????????????????????????? | | ????????????????????????????????Y????????????????? | | ?????????????????????????????????????????????????? | | ?????????????????????????????????????????????????? | | ?????????????????????????????????????????????????? | | ????????????????????????????????? #??????????????? | | ???????????????????????????????? #??????????????? | | ????????????????????###########w +??????????????? | | ???????????##########"## #??????????????? | | ?????#[ s r #??????????????? | | ???????????########"#### s #??????????????? | | ??????^?????# #####s#########??????????????? | | ????????????# """ # #??????????????????? | | ????????????# """ # #??????????????????? | | ????????????# ""% # """ """ #??????????????????? | | ????????????# = g # """ """ #??????????????????? | | ????????????# !"" # "" """ #??????????????????? | | ????????????# "" # @ #??????????????????? | | ????????????# """ #g #??????????????????? | | ????????? ###[ r gg[ #??????????????????? | | ??????# #######+#############??????????????????? | | ?? ##???????????????????????? | | ?? ##???????????????????????? | | ?? ##???????????????????????? | | ?? ##???????????????????????? | | ? ##???????????????????????? | | ? ##???????????????????????? | | ##???????????????????????? | | ###+############ ##??????????????????? | | "# ##? ######### ##??????????????????? | | " ##????????????## ##??????????o???????? | | " ##????????????## ##??????????????????? | | " ##????????????## ##??????????????????? "" | | " ##????????????## ##??????????????????? "" | | # ##????????????## ### ???????????? "" | | # ##????????????## #########???????????? "" | | ## ##????????????## # ]! ##???????????? | | ## ###???????????## # ! ##???????????? | | ## ################ / ##???????????? | | # ############### # ##???????????? ## | | # "Y" ##???????????? #? | | T # """ !##????????????####? | +----------------------------------------------------+ Best States ------------- Heat Dissipation 31 Energy Generation 10 Energy Capacity 250 Matter Stores 300 Matter Capacity 300 Sight Range 16 Terrain Scan Density 10 Cloak Strength 5 Armor Coverage 150 Resistance: KI 20 Resistance: TH 20 Resistance: EX 20 Resistance: EM 35 Resistance: I 20 Resistance: S 20 Resistance: P 20 Evasion (%) 62 Targeting Accuracy 5 Recoil Reduction 2 Offensive Hacking 10 Item Schematics ----------------- None Robot Schematics ------------------ None Fabricated ------------ Nothing Alien Tech Used ----------------- None Achievements -------------- None Challenges ------------ None Game ------ Seed BattleNavigationMaul Manual? 0 Play Time 00:47:14 Cumulative 6.1 hours Start 2024.04.02 @ 20:11:46 End 2024.04.02 @ 20:57:59 Sessions 1 Manual Loads 0 Difficulty Adventurer Special Mode None Game No. 5 Rogue 0 Adventurer 5 Explorer 0 Win Type - Total 0 Types 0/0/0/0/0/0/0/0/0 Lore% 8 Gallery% 8 Achievement% 10 Wizard Run 0 Options --------- Layout 1 ASCII 0 Keyboard 0 Movement Arrows Keybinds 0 Fullscreen 1 Font 24/Smallcaps Map View 50x35 Zoom Use 0% Tactical HUD 0 Map Filters NONE Filters NONE Steam 1 RUN: eed85444-fe15-4f2a-832c-b17a50b0e8de